Workbook

Sheet ディスク容量計算
K3: 作成 | L3: 2023年8月 MESW
B5: 本ファイルは、映像データの保存に必要なディスク容量（目安）を計算するためのファイルです。
B6: 入力セルに映像保存の条件を入力することで、必要なディスク容量、およびネカ録の推奨機種を表示します。
C8: 【映像保存の条件】 | R8: ↓マクロ書込 | S8: ↓検算用
D9: 解像度 | E9: 画像圧縮方式 | F9: フレームレート （コマ/秒） | G9: ビットレート （Kbps） | H9: カメラ台数 | I9: 保存日数 （日） | J9: 録画容量 （TB） | K9: 使用する ﾈｯﾄﾜｰｸ帯域 （Mbps） | Q9: 画像容量 （KB） | R9: １週間分の録画容量 （MB） | S9: １台分の録画容量 （MB） | T9: 録画容量 （MB） | U9: 録画容量 （GB）
D10: HD | E10: H.264 | F10: 30 | G10: 1536 | H10: 10 | I10: 30 | J10: =U10/1024 -> 4.634857178 | K10: =IF(H10>0,IF(E10="H.264",G10*H10*1.1/1024,Q10*F10*H10*8*1.1/1024),0) -> 16.5 | M10: 入力セル | Q10: 60 | R10: =IF(E10="H.264",G10/8*3600*24*7/1024,Q10*F10*3600*(24*7)/1024) -> 113400 | S10: =R10/7*$I$10 -> 486000 | T10: =S10*H10 -> 4860000 | U10: =S10*H10/1024 -> 4746.09375
D11: VGA | E11: H.264 | F11: 10 | G11: 1024 | H11: 0 | J11: =U11/1024 -> 0 | K11: 0 | Q11: 28 | R11: 75600 | S11: =R11/7*$I$10 -> 324000 | T11: 0 | U11: =S11*H11/1024 -> 0
D12: VGA | E12: JPEG | F12: 5 | H12: 0 | J12: 0 | K12: 0 | Q12: 40 | R12: 118125 | S12: 506250 | T12: 0 | U12: 0
D13: VGA | E13: JPEG | F13: 5 | H13: 0 | J13: 0 | K13: 0 | Q13: 40 | R13: 118125 | S13: 506250 | T13: 0 | U13: 0
D14: VGA | E14: JPEG | F14: 5 | H14: 0 | J14: 0 | K14: 0 | Q14: 40 | R14: 118125 | S14: 506250 | T14: 0 | U14: 0
D15: VGA | E15: JPEG | F15: 5 | H15: 0 | J15: 0 | K15: 0 | Q15: 40 | R15: 118125 | S15: 506250 | T15: 0 | U15: 0
D16: ※解像度でフルHDを指定する場合、画像圧縮方式はH.264を選択してください。 | I16: 合計 | J16: =SUM(J10:J15) -> 4.634857178 | K16: =SUM(K10:K15) -> 16.5 | T16: =SUM(T10:T15) -> 4860000 | U16: =SUM(U10:U15) -> 4746.09375
Q17: ※画像容量（KB/コマ）
C18: 【ネカ録に必要なディスク容量】 | Q18: ・JPEGの場合 ・・・ VGA ：40、SXVGA ：120、HD：85、フルHD：190
D19: 項目 | F19: 値 | Q19: ・H.264の場合 ・・・ VGA ：28、SXVGA ： 84、HD：60、フルHD：133
D20: 必要なディスク容量 （TB） | F20: =SUM(J10:J15) -> 4.634857178
C22: 【使用するネットワーク帯域】
D23: 項目 | F23: 値
D24: カメラとネカ録間の帯域（Mbps） | F24: =SUM(K10:K15) -> 16.5
D25: ※通信速度1000Mbpsで接続しているネットワークで、使用する帯域が150Mbpsを超過した場合、
D26: 映像保存時にコマ落ちが発生する可能性があります。
C28: 【ネカ録推奨機種】
E29: デスクトップ | G29: （録画可能日数） | H29: ラックマウント | J29: （録画可能日数）
D30: RAIDなし | E30: =LOOKUP($T$16/1024,リスト!B32:C35) -> 該当機種なし | G30: =IF($T$16 <> 0,VLOOKUP($T$16/1024,リスト!$B$32:$D$35,3)/$T$16*$I$10*1024,"") -> 0 | H30: - | J30: -
D31: RAID1 | E31: =LOOKUP($T$16/1024,リスト!B42:C46) -> NS-1860 (12TB) RAID1 | G31: =IF($T$16 <> 0,VLOOKUP($T$16/1024,リスト!$B$42:$D$46,3)/$T$16*$I$10*1024,"") -> 33.75407407 | H31: - | J31: -
D32: RAID5 | E32: =LOOKUP($T$16/1024,リスト!B48:C50) -> NS-3850 (8TB) RAID5 | G32: =IF($T$16 <> 0,VLOOKUP($T$16/1024,リスト!$B$48:$D$50,3)/$T$16*$I$10*1024,"") -> 33.75407407 | H32: - | J32: -
D33: RAID6 | E33: =LOOKUP($T$16/1024,リスト!B52:C56) -> NS-3850 (16TB) RAID6 | G33: =IF($T$16 <> 0,VLOOKUP($T$16/1024,リスト!$B$52:$D$56,3)/$T$16*$I$10*1024,"") -> 67.50814815 | H33: =LOOKUP($T$16/1024,リスト!B58:C62) -> NS-5850 (24TB) RAID6 | J33: =IF($T$16 <> 0,VLOOKUP($T$16/1024,リスト!$B$58:$D$62,3)/$T$16*$I$10*1024,"") -> 112.5135802
C35: 【参考：カメラ情報】
C36: ●主要カメラの最大フレームレート
E37: カメラ型名 | F37: 解像度 | G37: 画像圧縮方式 | H37: 最大フレームレート | I37: 備考
E38: NC-6100 | F38: SXVGA | G38: H.264 | H38: 15 | I38: ストリーム1の場合
F39: SXVGA | G39: JPEG | H39: 30 | I39: ストリーム1の場合
F40: VGA | G40: H.264 | H40: 30 | I40: ストリーム1の場合
F41: VGA | G41: JPEG | H41: 30 | I41: ストリーム1の場合
E42: NC-6700 | F42: SXVGA | G42: H.264 | H42: 15 | I42: ストリーム1の場合
F43: SXVGA | G43: JPEG | H43: 30 | I43: ストリーム1の場合
F44: VGA | G44: H.264 | H44: 30 | I44: ストリーム1の場合
F45: VGA | G45: JPEG | H45: 30 | I45: ストリーム1の場合
E46: BB-165A | F46: SXVGA | G46: H.264 | H46: 30
E47: <BBシリーズ> | F47: SXVGA | G47: JPEG | H47: 30
F48: VGA | G48: H.264 | H48: 30
F49: VGA | G49: JPEG | H49: 30
E50: BB-SC384A | F50: SXVGA | G50: H.264 | H50: 30 | I50: 天井吊り下げ専用
E51: <BBシリーズ> | F51: SXVGA | G51: JPEG | H51: 30
F52: VGA | G52: H.264 | H52: 30
F53: VGA | G53: JPEG | H53: 30
E54: WV-SC385 | F54: SXVGA | G54: H.264 | H54: 30
E55: <i-Proシリーズ> | F55: SXVGA | G55: JPEG | H55: 30
F56: VGA | G56: H.264 | H56: 30
F57: VGA | G57: JPEG | H57: 30

Sheet リスト (hidden)
A1: 画像圧縮方式 | B1: 画像サイズ | C1: 動き検知 | F1: 画像圧縮方式 | G1: 画像サイズ | H1: 画像容量 (Iﾌﾚｰﾑ) | I1: ﾋﾞｯﾄﾚｰﾄ | K1: フレームレート | M1: 解像度 | N1: JPEG 帯域（kbps） | O1: H.264 帯域（kbps）
A2: JPEG | B2: QVGA | C2: 有り | F2: JPEG | G2: QVGA | H2: 13 | K2: 1 | M2: VGA | N2: 352 | O2: 563 | P2: ※VGA(40KB/ｺﾏ), 1fps, 1台
A3: H.264 | B3: VGA | C3: なし | F3: JPEG | G3: VGA | H3: 40 | K3: 2 | M3: SXVGA | N3: 1056 | O3: 1690 | P3: ※SXVGA(120KB/ｺﾏ), 1fps, 1台
B4: SXVGA | F4: JPEG | G4: SXVGA | H4: 120 | K4: 3 | M4: HD | N4: 748 | O4: 1126 | P4: ※HD(85KB/ｺﾏ), 1fps, 1台
B5: HD | F5: JPEG | G5: HD | H5: 85 | K5: 4 | M5: フルHD | N5: 1672 | O5: 2253 | P5: ※FHD(190KB/ｺﾏ), 1fps, 1台
B6: フルHD | F6: JPEG | G6: フルHD | H6: 190 | K6: 5
F7: H.264（動き多） | G7: QVGA | H7: 10 | I7: 256 | K7: 6 | M7: リアルタイムトレンド枚数(枚)
A8: HDD実効容量 | B8: LOOKUP用録画容量 | C8: 機種 | D8: 録画容量 | F8: H.264（動き多） | G8: VGA | H8: 28 | I8: 512 | K8: 7 | M8: 0 | N8: ※帯域計算用
A9: デスクトップ JPEG/H.264 RAID1 | F9: H.264（動き多） | G9: SXVGA | H9: 84 | I9: 1536 | K9: 8
A10: 0 | B10: 0 | C10: NS-1800 (2TB) RAID1 | D10: =B11 -> 900 | F10: H.264（動き多） | G10: HD | H10: 60 | I10: 1024 | K10: 9 | M10: 基準フレームレート(fps)
A11: 1000 | B11: 900 | C11: NS-1800 (4TB) RAID1 | D11: =B12 -> 1800 | F11: H.264（動き多） | G11: フルHD | H11: 133 | I11: 2048 | K11: 10
A12: 2000 | B12: 1800 | C12: NS-1800 (6TB) RAID1 | D12: =B13 -> 2700 | K12: 11 | M12: 5 | N12: ※帯域計算用
A13: 3000 | B13: 2700 | C13: NS-1800 (8TB) RAID1 | D13: 3600 | I13: ﾋﾞｯﾄﾚｰﾄ | K13: 12
A14: 4000 | B14: 3600 | C14: 該当機種なし | D14: 0 | I14: 256 | K14: 13 | M14: 画像容量比（JPEG基準）
A15: デスクトップ JPEG/H.264 RAID5 | I15: 384 | K15: 14 | M15: JPEG | N15: 1
A16: 0 | B16: 0 | C16: NS-3800 (8TB) RAID5 | D16: 5400 | H16: VGA(1fps)→ | I16: 512 | K16: 15 | M16: H.264 | N16: =H8/H3 -> 0.7
A17: 6000 | B17: 5400 | C17: NS-3800 (16TB) RAID5 | D17: 12600 | H17: VGA(5fps以下)、SXVGA(1ｆｐｓ)、ＨＤ(1fps)→ | I17: 768 | K17: 16
A18: 14000 | B18: 12600 | C18: NS-3800 (24TB) RAID5 | D18: 18900 | H18: VGA(30fps以下)、SXVGA(5fps以下)、HD(5fps以下)→ | I18: 1024 | K18: 17
A19: 21000 | B19: 18900 | C19: NS-3800 (32TB) RAID5 | D19: 25200 | H19: SXVGA(10fps以下)、HD(30fps以下)、フルHD(1fps)→ | I19: 1536 | K19: 18
A20: 28000 | B20: 25200 | C20: 該当機種なし | D20: 0 | H20: SXVGA(15fps以下)、フルHD(5fps以下)→ | I20: 2048 | K20: 19
A21: デスクトップ JPEG/H.264 RAID6 | H21: SXVGA(30fps以下)、フルHD(10fps以下)→ | I21: 3072 | K21: 20
A22: 0 | B22: 0 | C22: NS-3800 (16TB) RAID6 | D22: 10800 | I22: 4096 | K22: 21
A23: 12000 | B23: 10800 | C23: NS-3800 (24TB) RAID6 | D23: 16200 | H23: フルHD(15fps以下)→ | I23: 5120 | K23: 22
A24: 18000 | B24: 16200 | C24: NS-3800 (32TB) RAID6 | D24: 21600 | H24: フルHD(30fps以下)→ | I24: 6144 | K24: 23
A25: 24000 | B25: 21600 | C25: 該当機種なし | D25: 0 | K25: 24
A26: ラックマウント JPEG/H.264 RAID6 | K26: 25
A27: 0 | B27: 0 | C27: NS-5800 (24TB) RAID6 | D27: 18000 | K27: 26
A28: 20000 | B28: 18000 | C28: NS-5800 (36TB) RAID6 | D28: 27000 | K28: 27
A29: 30000 | B29: 27000 | C29: NS-5800 (48TB) RAID6 | D29: 36000 | K29: 28
A30: 40000 | B30: 36000 | C30: 該当機種なし | D30: 0 | K30: 29
A31: デスクトッフ゜ JPEG/H.264 RAIDなし | K31: 30
A32: 0 | B32: 0 | C32: NS-850 (240GB) RAIDなし | D32: 198
A33: 240 | B33: 198 | C33: NS-850 (480GB) RAIDなし | D33: 426
A34: 480 | B34: 426 | C34: NS-850 (960GB) RAIDなし | D34: 882
A35: 960 | B35: 882 | C35: 該当機種なし | D35: 0
A36: デスクトップ JPEG/H.264 RAID1
A37: 0 | B37: 0 | C37: NS-1850 (4TB) RAID1 | D37: =B38 -> 1780
A38: 2000 | B38: 1780 | C38: NS-1850 (8TB) RAID1 | D38: =B39 -> 3560
A39: 4000 | B39: 3560 | C39: NS-1850 (12TB) RAID1 | D39: =B40 -> 5340
A40: 6000 | B40: 5340 | C40: 該当機種なし | D40: 0
A41: デスクトップ JPEG/H.264 RAID1
A42: 0 | B42: 0 | C42: NS-1860 (4TB) RAID1 | D42: =B43 -> 1780
A43: 2000 | B43: 1780 | C43: NS-1860 (8TB) RAID1 | D43: =B44 -> 3560
A44: 4000 | B44: 3560 | C44: NS-1860 (12TB) RAID1 | D44: =B45 -> 5340
A45: 6000 | B45: 5340 | C45: NS-1860 (16TB) RAID1 | D45: =B46 -> 7120
A46: 8000 | B46: 7120 | C46: 該当機種なし | D46: 0
A47: デスクトップ JPEG/H.264 RAID5
A48: 0 | B48: 0 | C48: NS-3850 (8TB) RAID5 | D48: =B49 -> 5340
A49: 6000 | B49: 5340 | C49: NS-3850 (24TB) RAID5 | D49: =B50 -> 16020
A50: 18000 | B50: 16020 | C50: 該当機種なし | D50: 0
A51: デスクトップ JPEG/H.264 RAID6
A52: 0 | B52: 0 | C52: NS-3850 (16TB) RAID6 | D52: =B53 -> 10680
A53: 12000 | B53: 10680 | C53: NS-3850 (32TB) RAID6 | D53: =B54 -> 21360
A54: 24000 | B54: 21360 | C54: NS-3850 (48TB) RAID6 | D54: =B55 -> 32040
A55: 36000 | B55: 32040 | C55: NS-3850 (64TB) RAID6 | D55: =B56 -> 42720
A56: 48000 | B56: 42720 | C56: 該当機種なし | D56: 0
A57: ラックマウント JPEG/H.264 RAID6
A58: 0 | B58: 0 | C58: NS-5850 (24TB) RAID6 | D58: =B59 -> 17800
A59: 20000 | B59: 17800 | C59: NS-5850 (48TB) RAID6 | D59: =B60 -> 35600
A60: 40000 | B60: 35600 | C60: NS-5850 (72TB) RAID6 | D60: =B61 -> 53400
A61: 60000 | B61: 53400 | C61: NS-5850 (96TB) RAID6 | D61: =B62 -> 71200
A62: 80000 | B62: 71200 | C62: 該当機種なし | D62: 0
A65: ■録画容量[MB] | I65: ■解像度／フレームレート／ビットレート、および品質の関係（品質は50を基準とする）
A66: H.264
A67: Iフレーム録画なし、音声あり | C67: (ビットレート[Kbps]/8+20)*3600*24*保存日数[日]/1000
A68: Iフレーム録画なし、音声なし | C68: ビットレート[Kbps]/8*3600*24*保存日数[日]/1000
A69: Iフレーム録画あり、音声あり | C69: (画像容量[KB]*フレームレート[コマ/秒]+20)*3600*24*保存日数[日]/1000
A70: Iフレーム録画あり、音声なし | C70: 画像容量[KB]*フレームレート[コマ/秒]*3600*24*保存日数[日]/1000
A71: JPEG
A72: 音声あり | C72: (画像容量[KB]*フレームレート[コマ/秒]+20)*3600*24*保存日数[日]/1000
A73: 音声なし | C73: 画像容量[KB]*フレームレート[コマ/秒]*3600*24*保存日数[日]/1000
A75: 2015-01-07
A76: ※音声、Iフレーム録画、動き検知は「なし」で固定とする。
A78: ■ネットワーク帯域[Mbps]
A79: H.264
A80: 音声あり | B80: (ビットレート[Kbps]+160)*カメラ台数*1.1/1024
A81: 音声なし | B81: ビットレート[Kbps]*カメラ台数*1.1/1024
A82: JPEG
A83: 音声あり | B83: (画像容量[KB]*フレームレート[コマ/秒]+20)*カメラ台数*8*1.1/1024
A84: 音声なし | B84: 画像容量[KB]*フレームレート[コマ/秒]*カメラ台数*8*1.1/1024
I100: 2023-08-03
I101: ビットレートはネカ録5_システム設計ガイドを参考に計算する
